[Event "Championnat d'Europe de Blitz"]
[Date "2024.12.09"]
[White "Kesidis, Odyseas"]
[Black "Papasimakopoulos, Alexandros"]
[WhiteElo "2241"]
[BlackElo "2379"]
[Round "6.40"]
[Result "0-1"]
[TimeControl "180+2"]

1. e4 {[%emt 00:00:03] [%clk 00:03:02]} e6 {[%clk 00:03:04]} 2. d4 {[%clk
00:03:03]} d5 {[%clk 00:03:05]} 3. e5 {[%emt 00:00:02] [%clk 00:03:03]} a6
{[%clk 00:03:06]} 4. Nf3 {[%emt 00:00:05] [%clk 00:03:00]} Bd7 {[%clk 00:03:08]}
5. c3 {[%emt 00:00:04] [%clk 00:02:59]} Ne7 {[%emt 00:00:02] [%clk 00:03:07]} 6.
Nbd2 {[%emt 00:00:18] [%clk 00:02:43]} Bb5 {[%emt 00:00:03] [%clk 00:03:06]} 7.
Bxb5+ {[%emt 00:00:07] [%clk 00:02:38]} axb5 {[%clk 00:03:07]} 8. O-O {[%emt
00:00:02] [%clk 00:02:37]} Nf5 {[%emt 00:00:04] [%clk 00:03:05]} 9. Nb3 {[%emt
00:00:10] [%clk 00:02:30]} b4 {[%emt 00:00:08] [%clk 00:03:00]} 10. Bg5 {[%emt
00:00:03] [%clk 00:02:28]} Qd7 {[%emt 00:00:06] [%clk 00:02:55]} 11. g4 {[%emt
00:00:15] [%clk 00:02:15]} Nh6 {[%emt 00:00:17] [%clk 00:02:41]} 12. h3 {[%emt
00:00:05] [%clk 00:02:11]} bxc3 {[%emt 00:00:03] [%clk 00:02:40]} 13. bxc3
{[%emt 00:00:01] [%clk 00:02:12]} Ng8 {[%emt 00:00:02] [%clk 00:02:40]} 14. Be3
{[%emt 00:00:19] [%clk 00:01:55]} h5 {[%emt 00:00:02] [%clk 00:02:40]} 15. Kg2
{[%emt 00:00:04] [%clk 00:01:53]} Qa4 {[%emt 00:00:17] [%clk 00:02:25]} 16. Qd2
{[%emt 00:00:15] [%clk 00:01:42]} Nc6 {[%emt 00:00:03] [%clk 00:02:22]} 17. Rfb1
{[%emt 00:00:13] [%clk 00:01:31]} b6 {[%emt 00:00:01] [%clk 00:02:23]} 18. Nc1
{[%emt 00:00:05] [%clk 00:01:28]} Na5 {[%emt 00:00:07] [%clk 00:02:18]} 19. Nd3
{[%emt 00:00:13] [%clk 00:01:17]} Nc4 {[%emt 00:00:01] [%clk 00:02:18]} 20. Qe2
{[%emt 00:00:06] [%clk 00:01:14]} Nh6 {[%emt 00:00:20] [%clk 00:02:00]} 21. Bxh6
{[%emt 00:00:09] [%clk 00:01:07]} Rxh6 {[%emt 00:00:02] [%clk 00:02:00]} 22. Nf4
{[%emt 00:00:02] [%clk 00:01:07]} hxg4 {[%emt 00:00:10] [%clk 00:01:52]} 23.
hxg4 {[%emt 00:00:01] [%clk 00:01:08]} Qa6 {[%emt 00:00:15] [%clk 00:01:39]} 24.
Kg3 {[%emt 00:00:10] [%clk 00:01:01]} Na3 {[%emt 00:00:01] [%clk 00:01:40]} 25.
Qxa6 {[%emt 00:00:05] [%clk 00:00:57]} Rxa6 {[%emt 00:00:01] [%clk 00:01:41]}
26. Rh1 {[%emt 00:00:02] [%clk 00:00:57]} Rxh1 {[%emt 00:00:11] [%clk 00:01:32]}
27. Rxh1 {[%emt 00:00:01] [%clk 00:00:58]} Nb5 {[%clk 00:01:34]} 28. Rh8 {[%emt
00:00:08] [%clk 00:00:52]} Nxc3 {[%emt 00:00:04] [%clk 00:01:32]} 29. Nh5 {[%emt
00:00:11] [%clk 00:00:42]} Ke7 {[%emt 00:00:02] [%clk 00:01:32]} 30. Ng5 {[%emt
00:00:14] [%clk 00:00:30]} Ne4+ {[%emt 00:00:01] [%clk 00:01:33]} 31. Nxe4
{[%emt 00:00:01] [%clk 00:00:31]} dxe4 {[%clk 00:01:34]} 32. Rh7 {[%emt
00:00:02] [%clk 00:00:30]} Rxa2 {[%emt 00:00:04] [%clk 00:01:32]} 33. Nxg7
{[%emt 00:00:01] [%clk 00:00:31]} Bxg7 {[%emt 00:00:02] [%clk 00:01:33]} 34.
Rxg7 {[%clk 00:00:32]} Rd2 {[%emt 00:00:04] [%clk 00:01:31]} 35. g5 {[%emt
00:00:04] [%clk 00:00:30]} Kf8 {[%emt 00:00:01] [%clk 00:01:32]} 36. Rh7 {[%emt
00:00:02] [%clk 00:00:29]} Rxd4 {[%emt 00:00:12] [%clk 00:01:22]} 37. g6 {[%emt
00:00:01] [%clk 00:00:30]} Rd3+ {[%emt 00:00:16] [%clk 00:01:08]} 38. Kg4 {[%emt
00:00:04] [%clk 00:00:28]} Rf3 {[%emt 00:00:06] [%clk 00:01:04]} 39. Rh8+ {[%emt
00:00:17] [%clk 00:00:13]} Kg7 {[%emt 00:00:03] [%clk 00:01:03]} 40. Rc8 {[%emt
00:00:01] [%clk 00:00:14]} Kxg6 {[%emt 00:00:06] [%clk 00:01:00]} 41. Rxc7
{[%clk 00:00:15]} Rxf2 {[%emt 00:00:02] [%clk 00:01:00]} 42. Rb7 {[%emt
00:00:03] [%clk 00:00:14]} Rf5 {[%emt 00:00:02] [%clk 00:01:00]} 43. Rxb6 {[%emt
00:00:03] [%clk 00:00:12]} Rxe5 {[%emt 00:00:01] [%clk 00:01:01]} 44. Kf4 {[%emt
00:00:01] [%clk 00:00:13]} Ra5 {[%emt 00:00:01] [%clk 00:01:02]} 45. Kxe4 {[%emt
00:00:02] [%clk 00:00:13]} Kf6 {[%emt 00:00:02] [%clk 00:01:02]} 46. Kf4 {[%emt
00:00:02] [%clk 00:00:13]} Ra4+ {[%clk 00:01:03]} 47. Ke3 {[%clk 00:00:15]} Kf5
{[%emt 00:00:01] [%clk 00:01:04]} 48. Rb7 {[%emt 00:00:01] [%clk 00:00:16]} Ra3+
{[%emt 00:00:02] [%clk 00:01:05]} 49. Kd4 {[%clk 00:00:17]} e5+ {[%clk
00:01:06]} 50. Kd5 {[%emt 00:00:01] [%clk 00:00:18]} Rd3+ {[%emt 00:00:01] [%clk
00:01:06]} 51. Kc4 {[%emt 00:00:01] [%clk 00:00:19]} Rd4+ {[%clk 00:01:07]} 52.
Kc5 {[%clk 00:00:20]} f6 {[%clk 00:01:08]} 53. Rb1 {[%emt 00:00:02] [%clk
00:00:21]} Rd2 {[%emt 00:00:11] [%clk 00:00:59]} 54. Rf1 {[%emt 00:00:02] [%clk
00:00:22]} Ke6 {[%clk 00:01:00]} 55. Kc4 {[%emt 00:00:02] [%clk 00:00:23]} f5
{[%emt 00:00:01] [%clk 00:01:00]} 56. Kc3 {[%clk 00:00:25]} Rd8 {[%emt 00:00:02]
[%clk 00:01:00]} 57. Rh1 {[%emt 00:00:01] [%clk 00:00:25]} e4 {[%clk 00:01:01]}
58. Rh6+ {[%emt 00:00:09] [%clk 00:00:19]} Ke5 {[%clk 00:01:02]} 59. Rh7 {[%emt
00:00:01] [%clk 00:00:20]} e3 {[%emt 00:00:01] [%clk 00:01:03]} 60. Re7+ {[%clk
00:00:21]} Kf4 {[%emt 00:00:01] [%clk 00:01:04]} 61. Kc2 {[%emt 00:00:02] [%clk
00:00:20]} 0-1

[Site "Europe Echecs"]

[Event "Championnat d'Europe de Blitz"]
[Date "2024.12.09"]
[White "Baskin, Robert"]
[Black "Minas, Ioannis"]
[WhiteElo "2442"]
[BlackElo "1987"]
[Round "6.41"]
[Result "1-0"]
[TimeControl "180+2"]

1. c4 {[%emt 00:00:01] [%clk 00:03:02]} e5 {[%emt 00:00:04] [%clk 00:03:01]} 2.
g3 {[%emt 00:00:01] [%clk 00:03:03]} Nf6 {[%emt 00:00:04] [%clk 00:02:59]} 3.
Bg2 {[%emt 00:00:01] [%clk 00:03:03]} c6 {[%emt 00:00:02] [%clk 00:02:59]} 4.
Nf3 {[%emt 00:00:02] [%clk 00:03:04]} e4 {[%emt 00:00:01] [%clk 00:02:59]} 5.
Nd4 {[%clk 00:03:05]} d5 {[%clk 00:03:01]} 6. cxd5 {[%emt 00:00:10] [%clk
00:02:57]} cxd5 {[%emt 00:00:10] [%clk 00:02:52]} 7. O-O {[%emt 00:00:10] [%clk
00:02:49]} Bc5 {[%emt 00:00:06] [%clk 00:02:48]} 8. Nb3 {[%emt 00:00:02] [%clk
00:02:50]} Bb6 {[%emt 00:00:01] [%clk 00:02:49]} 9. d3 {[%emt 00:00:02] [%clk
00:02:50]} Nc6 {[%emt 00:00:16] [%clk 00:02:35]} 10. Nc3 {[%emt 00:00:02] [%clk
00:02:51]} O-O {[%emt 00:00:07] [%clk 00:02:30]} 11. dxe4 {[%emt 00:00:29] [%clk
00:02:25]} d4 {[%emt 00:00:03] [%clk 00:02:28]} 12. Nd5 {[%emt 00:00:06] [%clk
00:02:21]} Nxd5 {[%emt 00:00:22] [%clk 00:02:08]} 13. exd5 {[%emt 00:00:01]
[%clk 00:02:22]} Ne7 {[%emt 00:00:11] [%clk 00:01:59]} 14. Nxd4 {[%emt 00:00:26]
[%clk 00:01:59]} Nxd5 {[%clk 00:01:59]} 15. Qb3 {[%emt 00:00:39] [%clk
00:01:22]} Bxd4 {[%emt 00:00:41] [%clk 00:01:20]} 16. Bxd5 {[%emt 00:00:13]
[%clk 00:01:11]} Qf6 {[%emt 00:00:08] [%clk 00:01:14]} 17. Bf4 {[%emt 00:00:20]
[%clk 00:00:53]} Bxb2 {[%emt 00:00:26] [%clk 00:00:50]} 18. Rab1 {[%emt
00:00:01] [%clk 00:00:54]} Be5 {[%emt 00:00:02] [%clk 00:00:51]} 19. Bxe5 {[%emt
00:00:24] [%clk 00:00:32]} Qxe5 {[%emt 00:00:01] [%clk 00:00:51]} 20. Bxb7
{[%emt 00:00:02] [%clk 00:00:33]} Bxb7 {[%emt 00:00:02] [%clk 00:00:51]} 21.
Qxb7 {[%emt 00:00:02] [%clk 00:00:33]} Qxe2 {[%clk 00:00:51]} 22. Rb2 {[%emt
00:00:08] [%clk 00:00:28]} Qe6 {[%emt 00:00:05] [%clk 00:00:48]} 23. Rc1 {[%emt
00:00:07]} h5 {[%clk 00:00:48]} 24. h4 {[%emt 00:00:01] [%clk 00:00:25]} Rab8
{[%emt 00:00:18] [%clk 00:00:33]} 25. Qxb8 {[%emt 00:00:01]} Rxb8 26. Rxb8+
{[%emt 00:00:01] [%clk 00:00:24]} Kh7 {[%clk 00:00:34]} 27. Rb2 {[%emt 00:00:04]
[%clk 00:00:21]} Qf5 {[%emt 00:00:09] [%clk 00:00:27]} 28. Rc4 {[%emt 00:00:06]
[%clk 00:00:17]} Qf3 {[%emt 00:00:03] [%clk 00:00:26]} 29. Rf4 {[%emt 00:00:02]
[%clk 00:00:17]} Qd1+ {[%emt 00:00:01] [%clk 00:00:27]} 30. Kh2 {[%clk
00:00:18]} f6 {[%emt 00:00:02] [%clk 00:00:27]} 31. Rb7 {[%emt 00:00:09] [%clk
00:00:10]} Kg6 {[%emt 00:00:21] [%clk 00:00:08]} 32. Rxa7 {[%emt 00:00:01] [%clk
00:00:11]} Qd5 {[%emt 00:00:03] [%clk 00:00:06]} 33. a4 {[%emt 00:00:06] [%clk
00:00:07]} Qc5 {[%emt 00:00:05] [%clk 00:00:03]} 34. Rd7 {[%emt 00:00:02] [%clk
00:00:05]} Qc6 {[%emt 00:00:03] [%clk 00:00:03]} 35. Rdd4 {[%emt 00:00:01] [%clk
00:00:05]} Qa6 {[%emt 00:00:08]} 36. Rd5 Qe2 {[%clk 00:00:03]} 37. a5 {[%emt
00:00:03] [%clk 00:00:03]} Qa2 {[%clk 00:00:04]} 38. Rc5 {[%emt 00:00:01] [%clk
00:00:04]} Qa3 {[%emt 00:00:01] [%clk 00:00:05]} 39. Rff5 {[%clk 00:00:05]} Qa2
{[%emt 00:00:03] [%clk 00:00:03]} 40. Kg2 {[%clk 00:00:06]} Qe6 {[%emt 00:00:02]
[%clk 00:00:04]} 41. Rxh5 {[%emt 00:00:02] [%clk 00:00:07]} Qe4+ {[%clk
00:00:05]} 42. Kg1 {[%emt 00:00:01] [%clk 00:00:08]} Qf3 {[%emt 00:00:01] [%clk
00:00:05]} 43. Rhf5 {[%emt 00:00:01] [%clk 00:00:09]} Qd1+ {[%emt 00:00:01]
[%clk 00:00:06]} 44. Kg2 {[%clk 00:00:10]} Qd7 {[%emt 00:00:02] [%clk 00:00:07]}
45. a6 {[%emt 00:00:01] [%clk 00:00:11]} Qa4 {[%emt 00:00:04] [%clk 00:00:05]}
46. Ra5 {[%emt 00:00:02] [%clk 00:00:11]} Qe4+ {[%clk 00:00:07]} 47. Kg1 {[%clk
00:00:12]} Qe1+ {[%emt 00:00:01] [%clk 00:00:08]} 48. Kh2 {[%clk 00:00:13]} Qe8
{[%emt 00:00:02] [%clk 00:00:07]} 49. a7 {[%emt 00:00:01] [%clk 00:00:14]} Qa8
{[%clk 00:00:09]} 50. Rfb5 {[%emt 00:00:02] [%clk 00:00:15]} Kh6 {[%emt
00:00:06]} 51. Kg1 {[%emt 00:00:01] [%clk 00:00:14]} g6 {[%emt 00:00:04] [%clk
00:00:05]} 52. Rb8 {[%emt 00:00:01] [%clk 00:00:15]} 1-0

[Site "Europe Echecs"]

[Event "Championnat d'Europe de Blitz"]
[Date "2024.12.09"]
[White "Nakonechnyi, Oleksii"]
[Black "Safarli, Eltaj"]
[WhiteElo "2052"]
[BlackElo "2610"]
[Round "6.42"]
[Result "1/2-1/2"]
[TimeControl "180+2"]

1. Nf3 {[%emt 00:00:01] [%clk 00:03:03]} Nf6 {[%emt 00:00:02] [%clk 00:03:03]}
2. g3 {[%clk 00:03:04]} g6 {[%emt 00:00:02] [%clk 00:03:04]} 3. Bg2 {[%clk
00:03:06]} Bg7 {[%clk 00:03:04]} 4. O-O {[%emt 00:00:02] [%clk 00:03:07]} O-O
{[%emt 00:00:01] [%clk 00:03:05]} 5. d4 {[%clk 00:03:08]} d5 {[%emt 00:00:01]
[%clk 00:03:06]} 6. c4 {[%clk 00:03:09]} c6 {[%clk 00:03:07]} 7. cxd5 {[%emt
00:00:02] [%clk 00:03:09]} cxd5 {[%clk 00:03:08]} 8. Nc3 {[%clk 00:03:10]} Nc6
{[%clk 00:03:09]} 9. Bf4 {[%emt 00:00:01] [%clk 00:03:11]} Bf5 {[%emt 00:00:08]
[%clk 00:03:03]} 10. a3 {[%emt 00:00:02] [%clk 00:03:12]} Rc8 {[%emt 00:00:09]
[%clk 00:02:56]} 11. Rc1 {[%emt 00:00:01] [%clk 00:03:12]} Ne4 {[%emt 00:00:05]
[%clk 00:02:53]} 12. h3 {[%emt 00:00:28] [%clk 00:02:46]} Nxc3 {[%emt 00:00:05]
[%clk 00:02:50]} 13. Rxc3 {[%emt 00:00:02] [%clk 00:02:46]} Be4 {[%emt 00:00:04]
[%clk 00:02:48]} 14. Be3 {[%emt 00:00:10] [%clk 00:02:38]} e6 {[%emt 00:00:10]
[%clk 00:02:40]} 15. Qd2 {[%emt 00:00:08] [%clk 00:02:32]} Qb6 {[%emt 00:00:04]
[%clk 00:02:38]} 16. Rd1 {[%emt 00:00:08] [%clk 00:02:26]} Na5 {[%emt 00:00:04]
[%clk 00:02:37]} 17. Rxc8 {[%emt 00:00:19] [%clk 00:02:09]} Rxc8 {[%emt
00:00:01] [%clk 00:02:38]} 18. Rc1 {[%clk 00:02:10]} Rxc1+ {[%emt 00:00:10]
[%clk 00:02:29]} 19. Qxc1 {[%emt 00:00:01] [%clk 00:02:11]} Nc4 {[%emt 00:00:01]
[%clk 00:02:30]} 20. b4 {[%emt 00:00:32] [%clk 00:01:41]} Bxf3 {[%emt 00:00:05]
[%clk 00:02:27]} 21. Bxf3 {[%emt 00:00:08] [%clk 00:01:36]} Bxd4 {[%emt
00:00:02] [%clk 00:02:27]} 22. Bxd4 {[%emt 00:00:02] [%clk 00:01:36]} Qxd4
{[%emt 00:00:01] [%clk 00:02:28]} 23. h4 {[%emt 00:00:14] [%clk 00:01:23]} Qd2
{[%emt 00:00:07] [%clk 00:02:23]} 24. Qa1 {[%emt 00:00:09] [%clk 00:01:17]} Qb2
{[%emt 00:00:04] [%clk 00:02:22]} 25. Qd1 {[%emt 00:00:02] [%clk 00:01:17]} Nxa3
{[%emt 00:00:06] [%clk 00:02:17]} 26. Kg2 {[%emt 00:00:06] [%clk 00:01:12]} Qxb4
{[%emt 00:00:03] [%clk 00:02:16]} 27. h5 {[%clk 00:01:13]} Kg7 {[%emt 00:00:16]
[%clk 00:02:02]} 28. Qc1 {[%emt 00:00:08] [%clk 00:01:07]} Nc4 {[%emt 00:00:10]
[%clk 00:01:54]} 29. h6+ {[%emt 00:00:03] [%clk 00:01:07]} Kf8 {[%emt 00:00:03]
[%clk 00:01:53]} 30. Qf4 {[%emt 00:00:03] [%clk 00:01:06]} Qd2 {[%emt 00:00:59]
[%clk 00:00:56]} 31. Qb8+ {[%emt 00:00:08] [%clk 00:01:00]} Ke7 {[%clk
00:00:57]} 32. Qxb7+ {[%emt 00:00:02] [%clk 00:01:00]} Kf6 {[%emt 00:00:02]
[%clk 00:00:57]} 33. Qxa7 {[%emt 00:00:07] [%clk 00:00:55]} Qxh6 {[%emt
00:00:02] [%clk 00:00:57]} 34. Qd4+ {[%emt 00:00:02] [%clk 00:00:55]} Ne5 {[%emt
00:00:26] [%clk 00:00:33]} 35. e4 {[%emt 00:00:06] [%clk 00:00:52]} dxe4 {[%emt
00:00:09] [%clk 00:00:26]} 36. Bxe4 {[%emt 00:00:05] [%clk 00:00:49]} g5 {[%emt
00:00:02] [%clk 00:00:26]} 37. Bc2 {[%emt 00:00:13] [%clk 00:00:38]} g4 {[%emt
00:00:04] [%clk 00:00:25]} 38. Qe4 {[%emt 00:00:04] [%clk 00:00:36]} Ng6 {[%emt
00:00:20] [%clk 00:00:07]} 39. Qxg4 {[%emt 00:00:01] [%clk 00:00:36]} Qg5 {[%emt
00:00:02] [%clk 00:00:07]} 40. Qxg5+ {[%emt 00:00:08] [%clk 00:00:30]} Kxg5
{[%clk 00:00:09]} 41. Be4 {[%emt 00:00:07] [%clk 00:00:25]} h6 {[%emt 00:00:03]
[%clk 00:00:07]} 42. f3 {[%emt 00:00:07] [%clk 00:00:21]} Ne7 {[%emt 00:00:02]
[%clk 00:00:07]} 43. Kf2 {[%emt 00:00:07] [%clk 00:00:16]} Nd5 {[%clk 00:00:08]}
44. f4+ {[%emt 00:00:05] [%clk 00:00:13]} Kf6 {[%emt 00:00:01] [%clk 00:00:08]}
45. Kf3 {[%clk 00:00:14]} Nc3 {[%emt 00:00:02] [%clk 00:00:08]} 46. Bd3 {[%clk
00:00:16]} Na4 {[%clk 00:00:09]} 47. Kg4 {[%emt 00:00:01] [%clk 00:00:16]} Nc5
{[%emt 00:00:01] [%clk 00:00:10]} 48. Bc2 {[%clk 00:00:18]} Kg7 {[%emt 00:00:02]
[%clk 00:00:10]} 49. Kf3 {[%emt 00:00:02] [%clk 00:00:18]} Nd7 {[%emt 00:00:01]
[%clk 00:00:11]} 50. g4 {[%emt 00:00:01] [%clk 00:00:19]} Kf6 {[%emt 00:00:01]
[%clk 00:00:11]} 51. Bd3 {[%clk 00:00:20]} Nb6 {[%emt 00:00:01] [%clk 00:00:12]}
52. Be4 {[%clk 00:00:21]} Nc4 {[%emt 00:00:01] [%clk 00:00:13]} 53. Bd3 {[%clk
00:00:22]} Nd6 {[%clk 00:00:14]} 54. Ke3 {[%emt 00:00:03] [%clk 00:00:21]} Ke7
{[%emt 00:00:04] [%clk 00:00:12]} 55. Kd4 {[%emt 00:00:01] [%clk 00:00:21]} Ne8
{[%emt 00:00:03] [%clk 00:00:12]} 56. Ke5 {[%emt 00:00:08] [%clk 00:00:16]} Nf6
{[%emt 00:00:08] [%clk 00:00:05]} 57. g5 {[%emt 00:00:09] [%clk 00:00:09]} hxg5
{[%clk 00:00:06]} 58. fxg5 {[%clk 00:00:10]} Nd7+ {[%clk 00:00:08]} 59. Kf4
{[%emt 00:00:02] [%clk 00:00:10]} Nf8 {[%clk 00:00:09]} 60. Be4 {[%emt 00:00:02]
[%clk 00:00:10]} Kd6 {[%emt 00:00:03] [%clk 00:00:08]} 61. Bc2 {[%emt 00:00:03]
[%clk 00:00:10]} Ng6+ {[%emt 00:00:02] [%clk 00:00:09]} 62. Ke4 {[%emt 00:00:03]
[%clk 00:00:08]} Ne7 {[%emt 00:00:03] [%clk 00:00:07]} 63. Bd3 {[%emt 00:00:02]
[%clk 00:00:09]} Nd5 {[%emt 00:00:01] [%clk 00:00:08]} 64. Bc4 {[%emt 00:00:02]
[%clk 00:00:09]} Nb6 {[%emt 00:00:02] [%clk 00:00:08]} 65. Bb3 {[%emt 00:00:01]
[%clk 00:00:10]} Nd7 {[%clk 00:00:09]} 66. Kf4 {[%emt 00:00:02] [%clk 00:00:09]}
Ke7 {[%emt 00:00:04] [%clk 00:00:07]} 67. Bc2 {[%emt 00:00:01] [%clk 00:00:10]}
Nb6 {[%emt 00:00:03] [%clk 00:00:07]} 68. Be4 {[%emt 00:00:01] [%clk 00:00:11]}
Nc4 {[%emt 00:00:01] [%clk 00:00:07]} 69. Bd3 {[%emt 00:00:01] [%clk 00:00:12]}
Nd6 {[%emt 00:00:01] [%clk 00:00:08]} 70. Ke5 {[%emt 00:00:02]} Ne8 {[%clk
00:00:09]} 71. Be4 {[%clk 00:00:14]} Nc7 {[%emt 00:00:02] [%clk 00:00:09]} 72.
Bd3 {[%emt 00:00:01] [%clk 00:00:16]} Na8 {[%emt 00:00:02] [%clk 00:00:09]} 73.
Be4 {[%emt 00:00:02] [%clk 00:00:16]} Nb6 {[%clk 00:00:10]} 74. Bd3 {[%emt
00:00:02] [%clk 00:00:16]} Nd7+ {[%emt 00:00:01] [%clk 00:00:11]} 75. Kd4 {[%clk
00:00:17]} Kd6 {[%emt 00:00:04] [%clk 00:00:09]} 76. g6 {[%emt 00:00:06] [%clk
00:00:13]} f5 {[%emt 00:00:02] [%clk 00:00:09]} 77. g7 {[%emt 00:00:02] [%clk
00:00:13]} Nf6 {[%clk 00:00:10]} 78. Bc4 {[%emt 00:00:02] [%clk 00:00:13]} Ke7
{[%emt 00:00:06] [%clk 00:00:06]} 79. Ke5 {[%emt 00:00:01] [%clk 00:00:14]} Ng4+
{[%emt 00:00:03] [%clk 00:00:04]} 80. Kf4 {[%emt 00:00:02] [%clk 00:00:14]} Nf6
{[%emt 00:00:02] [%clk 00:00:04]} 81. Ke5 {[%clk 00:00:16]} Nd7+ {[%emt
00:00:03] [%clk 00:00:04]} 82. Kf4 {[%clk 00:00:16]} Nf6 {[%emt 00:00:02] [%clk
00:00:05]} 83. Ke5 {[%clk 00:00:18]} Ng4+ {[%emt 00:00:02] [%clk 00:00:05]} 84.
Kf4 {[%clk 00:00:19]} Nh6 {[%emt 00:00:01] [%clk 00:00:06]} 85. Ke5 {[%emt
00:00:01] [%clk 00:00:19]} Ng4+ {[%emt 00:00:04] [%clk 00:00:04]} 86. Kf4 {[%clk
00:00:21]} Nf6 {[%emt 00:00:01] [%clk 00:00:05]} 87. Ke5 {[%clk 00:00:22]} Nd7+
{[%emt 00:00:04]} 88. Kf4 {[%emt 00:00:01] [%clk 00:00:22]} Nf6 {[%clk
00:00:04]} 89. Ke5 {[%clk 00:00:23]} Nd7+ {[%emt 00:00:01] [%clk 00:00:05]}
1/2-1/2

[Site "Europe Echecs"]

[Event "Championnat d'Europe de Blitz"]
[Date "2024.12.09"]
[White "Avramidou, Anastasia"]
[Black "Kadric, Denis"]
[WhiteElo "2298"]
[BlackElo "2544"]
[Round "6.43"]
[Result "0-1"]
[TimeControl "180+2"]

1. d4 {[%emt 00:00:01] [%clk 00:03:02]} d6 {[%emt 00:00:01] [%clk 00:03:04]} 2.
e4 {[%emt 00:00:01] [%clk 00:03:02]} Nf6 {[%emt 00:00:01] [%clk 00:03:05]} 3.
Nc3 {[%emt 00:00:01] [%clk 00:03:03]} Nbd7 {[%clk 00:03:06]} 4. Be3 {[%emt
00:00:02] [%clk 00:03:03]} e5 {[%emt 00:00:02] [%clk 00:03:07]} 5. f3 {[%emt
00:00:02] [%clk 00:03:03]} c6 {[%emt 00:00:02] [%clk 00:03:08]} 6. Qd2 {[%emt
00:00:01] [%clk 00:03:03]} h5 {[%emt 00:00:03] [%clk 00:03:07]} 7. Nh3 {[%emt
00:00:13] [%clk 00:02:52]} b5 {[%emt 00:00:02] [%clk 00:03:07]} 8. Nf2 {[%emt
00:00:08] [%clk 00:02:46]} Bb7 {[%emt 00:00:08] [%clk 00:03:01]} 9. O-O-O {[%emt
00:00:08] [%clk 00:02:40]} Be7 {[%emt 00:00:06] [%clk 00:02:57]} 10. g3 {[%emt
00:00:20] [%clk 00:02:22]} Qc7 {[%emt 00:00:23] [%clk 00:02:36]} 11. Bg2 {[%emt
00:00:18] [%clk 00:02:05]} Nb6 {[%emt 00:00:14] [%clk 00:02:24]} 12. Bg5 {[%emt
00:00:20] [%clk 00:01:47]} Nc4 {[%emt 00:00:28] [%clk 00:01:59]} 13. Qe2 {[%emt
00:00:07] [%clk 00:01:42]} Qa5 {[%emt 00:00:07] [%clk 00:01:54]} 14. f4 {[%emt
00:01:12] [%clk 00:00:32]} Ba6 {[%emt 00:00:57] [%clk 00:00:59]} 15. fxe5 {[%emt
00:00:06] [%clk 00:00:27]} dxe5 {[%emt 00:00:03] [%clk 00:00:58]} 16. dxe5
{[%emt 00:00:08] [%clk 00:00:22]} b4 {[%emt 00:00:07] [%clk 00:00:53]} 17. exf6
{[%emt 00:00:04] [%clk 00:00:19]} Qxg5+ {[%emt 00:00:01] [%clk 00:00:54]} 18.
Kb1 {[%emt 00:00:03] [%clk 00:00:18]} bxc3 {[%emt 00:00:17] [%clk 00:00:40]} 19.
Nd3 {[%emt 00:00:04] [%clk 00:00:16]} Nxb2 {[%emt 00:00:10] [%clk 00:00:32]} 20.
e5 {[%emt 00:00:08] [%clk 00:00:10]} O-O {[%emt 00:00:15] [%clk 00:00:19]} 21.
fxe7 {[%emt 00:00:01] [%clk 00:00:11]} Rfb8 {[%emt 00:00:02] [%clk 00:00:19]}
22. Ka1 {[%emt 00:00:04] [%clk 00:00:09]} Nxd1 {[%emt 00:00:05] [%clk 00:00:15]}
23. Rxd1 {[%emt 00:00:02] [%clk 00:00:09]} Qxe7 {[%emt 00:00:03] [%clk
00:00:15]} 24. Bxc6 {[%emt 00:00:02] [%clk 00:00:09]} Bb7 {[%clk 00:00:16]} 25.
Ba4 {[%emt 00:00:07] [%clk 00:00:05]} Qa3 {[%emt 00:00:02] [%clk 00:00:16]} 26.
Bb3 {[%emt 00:00:02] [%clk 00:00:05]} Ba6 {[%emt 00:00:05] [%clk 00:00:13]} 27.
Qf2 {[%emt 00:00:04] [%clk 00:00:03]} Rb7 {[%emt 00:00:05] [%clk 00:00:09]} 28.
Rb1 {[%clk 00:00:04]} Rab8 {[%emt 00:00:03] [%clk 00:00:08]} 29. e6 {[%emt
00:00:02] [%clk 00:00:05]} Bxd3 {[%emt 00:00:03] [%clk 00:00:07]} 30. exf7+
{[%emt 00:00:03] [%clk 00:00:04]} Kf8 {[%clk 00:00:08]} 31. cxd3 {[%emt
00:00:01] [%clk 00:00:04]} Rxb3 {[%emt 00:00:03] [%clk 00:00:08]} 32. Rxb3
{[%emt 00:00:02] [%clk 00:00:03]} Qc1+ {[%clk 00:00:09]} 0-1

[Site "Europe Echecs"]